Cogmind - Beta 17 @@@ ROGUE MODE // 2026.06.23 @ 12:09:34 Player: Scuttle Result: Heading to fleet! Performance ------------- Evolutions (9) 4500 Regions Visited (18) 3600 Robots Destroyed (186) 930 Value Destroyed (8728) 8728 Prototype IDs (139) 2780 Alien Tech Used (4) 800 Bonus (29224) 29224 TOTAL SCORE: 50562 Bonus ------- Triggered High Security 500 High Alert Combat Kills 3133 Follower Combat Kills 2133 Prayed to X0-1V1 5000 Major X0-1V1 Interference 11250 Entered DSFs 500 Aligned with FarCom 300 Used Core Reset Matrix 3000 Scanned by Researcher 500 Win 3000 Friendly Fire -92 Cogmind --------- Core Integrity 1802/1900 Matter 709/1000 Energy 452/460 System Corruption 0% Temperature Cool (6) Movement Walking (130) Location To Fleet Rendezvous Parts ------- > --- POWER (3) -------- Concept Zero-point Core Concept Zero-point Core Concept Zero-point Core > --- PROPULSION (7) --- Improved Heavy Siege Treads Centrium Leg Experimental Armored Exoskeleton > --- UTILITY (12) ----- Lightpack 2.0 Experimental Active Sensor Suite Core Analyzer Concept Phase Shift Module Graphene Brace (fused) Concept Energy Mantle X0-1V1's Piety Tracker > --- WEAPON (4) ------- Nova Cannon Heavy Scimitar of Distortion > --- INVENTORY (40) --- Quantum Reactor Hybrid Graviton Reactor Matter Filter Improved Weapon Cycler Peak State ------------ > --- POWER ------------ Experimental Antimatter Reactor Concept Zero-point Core Concept Zero-point Core > --- PROPULSION ------- Improved Heavy Siege Treads Centrium Leg Experimental Armored Exoskeleton > --- UTILITY ---------- Lightpack 2.0 Experimental Active Sensor Suite Core Analyzer Experimental Kinecellerator Concept Reaction Jets Concept Phase Shift Module Graphene Brace Concept Energy Mantle X0-1V1's Piety Tracker > --- WEAPON ----------- Enhanced Autogun Enhanced Autogun Enhanced Autogun Heavy Scimitar of Distortion > --- INVENTORY -------- Quantum Reactor Hybrid Graviton Reactor Concept Zero-point Core Matter Filter Improved Weapon Cycler Concept Energy Mantle [Rating: 250] Favorites ----------- Power Experimental Antimatter Reactor Engine Ion Engine Power Core Fission Core Reactor Experimental Antimatter Reactor Propulsion Cooled VTOL Module Treads Light Treads Leg Experimental Armored Exoskeleton Wheel Armored Wheel Hover Unit Combat Linear Gravjet Flight Unit Cooled VTOL Module Utility Lightpack 2.0 Device X0-1V1's Piety Tracker Storage Lightpack 2.0 Processor Core Analyzer Hackware Advanced Hacking Suite Protection Centrium Heavy Armor Plating Artifact Phase Redirector Weapon Enhanced Autogun Energy Gun Particle Gun Energy Cannon Cooled Nova Cannon Ballistic Gun Enhanced Autogun Ballistic Cannon Omega Cannon Launcher Heavy Rocket Launcher Slashing Weapon Heavy Scimitar of Distortion Special Melee Weapon Datajack Build | -11 -10 -10 -10 -9 -8 -7 -6 -5 -5 -4 -4 -4 -3 -3 -2 -2 -2 -1 ------- Run | Yrd Mat Min Exi Min Mat Fac Fac Fac DSF Fac Was Fac Res Tes Res Qua Frg Acc Slots Evolved 18 | . . . . . 4 2 2 2 . 2 . . 2 . 2 . . 2 Power 1 | . . . . . . . . . . 1 . . . . . . . . Propulsion 5 | . . . . . 2 1 . . . 1 . . . . 1 . . . Utility 10 | . . . . . 2 . 2 2 . . . . 2 . . . . 2 Weapon 2 | . . . . . . 1 . . . . . . . . 1 . . . Parts Attached 153 | 3 8 . . 3 15 6 7 2 7 10 . 5 12 10 7 11 40 7 Power 18 | . 1 . . 1 1 . 3 . . 1 . . . 1 1 2 5 2 Engine 1 | . 1 . . . . . . . . . . . . . . . . . Core 7 | . . . . 1 1 . 1 . . 1 . . . . . . 1 2 Reactor 10 | . . . . . . . 2 . . . . . . 1 1 2 4 . Propulsion 34 | 2 2 . . . 8 4 . . . 2 . . . 2 3 . 10 1 Treads 9 | 1 1 . . . 5 1 . . . . . . . . . . 1 . Leg 2 | . . . . . . . . . . . . . . . . . 1 1 Wheel 5 | 1 1 . . . 3 . . . . . . . . . . . . . Hover 8 | . . . . . . . . . . . . . . . . . 8 . Flight 10 | . . . . . . 3 . . . 2 . . . 2 3 . . . Utility 64 | . 3 . . . 1 . 3 2 2 4 . 5 10 3 2 6 20 3 Device 36 | . 2 . . . . . 1 1 2 1 . 3 7 1 1 5 9 3 Storage 3 | . 1 . . . 1 . . . . . . . . 1 . . . . Processor 9 | . . . . . . . 1 1 . 1 . . 2 1 . . 3 . Hackware 4 | . . . . . . . . . . 2 . 2 . . . . . . Protection 11 | . . . . . . . 1 . . . . . 1 . 1 1 7 . Artifact 1 | . . . . . . . . . . . . . . . . . 1 . Weapon 37 | 1 2 . . 2 5 2 1 . 5 3 . . 2 4 1 3 5 1 Energy Gun 5 | . . . . 1 1 . . . . . . . . . . . 3 . Energy Cannon 6 | . . . . . . . . . . 1 . . 2 2 . . . 1 Ballistic Gun 16 | 1 1 . . . 4 1 . . 5 1 . . . . . 2 1 . Ballistic Cannon 1 | . . . . . . . . . . . . . . 1 . . . . Launcher 3 | . 1 . . 1 . 1 . . . . . . . . . . . . Special Weapon . | . . . . . . . . . . . . . . . . . . . Impact Weapon . | . . . . . . . . . . . . . . . . . . . Slashing Weapon 4 | . . . . . . . . . . . . . . 1 1 1 1 . Piercing Weapon . | . . . . . . . . . . . . . . . . . . . Special Melee Weapon 2 | . . . . . . . 1 . . 1 . . . . . . . . Unidentified Prototypes 29 | . 1 . . . 1 2 1 1 . 1 . 1 . 7 . 6 8 . Parts Lost 35 | . . . . . 1 . . . 1 2 . . 1 . 2 1 19 8 Power 4 | . . . . . . . . . . . . . . . . . 2 2 Propulsion 7 | . . . . . 1 . . . . . . . . . 1 . 5 . Utility 18 | . . . . . . . . . 1 2 . . . . 1 1 10 3 Weapon 6 | . . . . . . . . . . . . . 1 . . . 2 3 Highest Loss Streak 5 | . . . . . 1 . . . 1 2 . . 1 . 2 1 4 5 To Critical Strikes . | . . . . . . . . . . . . . . . . . . . Average Backups 22 | 4 5 7 7 9 10 25 34 34 36 36 35 35 32 33 36 35 24 7 Power 1 | 1 . . . . . 1 1 2 2 1 2 2 2 1 2 2 2 3 Propulsion 2 | 2 3 4 4 5 1 1 4 4 4 2 3 2 2 3 2 3 1 . Utility 9 | . . 1 1 2 3 9 12 11 14 16 15 16 14 17 17 15 10 3 Weapon 7 | . 1 2 2 2 4 12 15 16 15 14 14 13 11 11 14 11 6 . Tool/Special . | . . . . . . . . . . . . . . . . . . . Unused Backups 84 | . 4 . . 1 2 3 7 . 5 3 . 7 6 7 5 8 23 3 Power 12 | . 1 . . . 1 1 2 . . . . 1 1 . . 1 2 2 Propulsion 6 | . 1 . . . . 1 . . . . . 1 . 1 . . 2 . Utility 39 | . 1 . . 1 1 1 2 . 2 3 . 3 2 1 4 4 13 1 Weapon 26 | . 1 . . . . . 3 . 3 . . 2 3 5 1 3 5 . Tool/Special 1 | . . . . . . . . . . . . . . . . . 1 . Average Slot Usage (%) 74 | . 94 100 100 99 80 73 60 68 68 71 73 73 75 73 72 71 64 67 Engine 2 | . 14 14 14 3 . . . . . . . . . . . . . . Core 3 | . . . . 10 9 7 5 . . 4 5 5 4 2 . . . 5 Reactor 3 | . . . . . . . . 5 5 5 5 5 4 5 7 4 6 5 Treads 4 | . 14 14 14 14 17 11 . . . . . . . . . . . 3 Wheel 4 | . 14 14 14 14 18 9 . . . . . . . . . . . . Hover 2 | . . . . . . . . . . . . . . . . . 9 . Flight 7 | . . . . . . 6 13 11 11 15 15 15 14 14 18 26 6 . Device 12 | . 8 14 14 14 9 7 7 11 12 13 10 10 16 13 12 9 12 26 Storage 6 | . 14 14 14 14 8 7 6 5 5 5 5 5 4 4 4 4 4 3 Processor 4 | . . . . . . . 3 9 11 10 5 5 9 9 8 8 5 3 Hackware 2 | . . . . . . . . . . . 10 10 9 9 8 8 2 . Protection 2 | . . . . . . . 1 5 4 . . . . 4 3 4 5 . Energy Gun 1 | . 3 . . 10 7 . . . . . . . . . . . . . Ballistic Gun 11 | . 23 28 28 16 10 22 19 17 15 14 15 15 7 1 . . 4 9 Peak Build Rating 250 | 6 21 21 27 31 70 108 121 132 144 152 148 151 164 186 194 182 235 250 Average Rating 129 | 6 8 20 23 29 63 88 114 131 135 146 148 148 159 171 187 166 185 233 On Entrance 105 | 6 6 21 21 27 31 70 108 120 132 134 148 148 149 163 186 165 168 208 Avg Prop Armor Cover (%) 9 | . 11 11 11 11 16 17 . . . . . . . . . 1 7 8 Naked Turns . | . . . . . . . . . . . . . . . . . . . Heaviest Build 107 | 11 30 30 30 31 19 23 32 33 40 44 40 41 50 56 59 41 107 92 Greatest Support 130 | 20 16 12 12 12 36 55 55 55 55 64 60 60 64 66 68 45 101 130 Greatest Overweight (x) 2 | . 2 2 2 2 1 . . . . . . . . . . 1 2 . Average Overweight (x) . | . 1 2 2 2 . . . . . . . . . . . . . . Largest Inventory Capacity 40 | 8 15 15 15 15 40 40 40 40 40 40 40 40 40 40 40 40 40 40 Average Capacity 34 | 8 11 15 15 15 39 40 40 40 40 40 40 40 40 40 40 40 40 40 Most Carried 40 | 6 8 7 14 15 23 35 38 36 40 38 35 37 38 40 40 40 40 9 Average Carried 24 | 3 5 6 10 14 13 26 34 35 37 36 35 35 33 36 37 38 26 7 Final Capacity 40 | 8 15 15 15 15 40 40 40 40 40 40 40 40 40 40 40 40 40 40 Final Carried 40 | 3 7 7 14 15 23 35 37 36 37 35 35 33 36 40 38 38 10 4 Class Distribution -------------------- 34% | Hauler-Mutant 19% | Mutant 16% | Hauler-Tank 14% | Hauler-Gunner 9% | Hauler-Sprinter 3% | Hauler-Skirmisher Dominant Class ---------------- Mutant | -10/Materials Mutant | -10/Mines Mutant | -10/Exiles Mutant | -9/Mines Hauler-Mutant | -8/Materials Hauler-Gunner | -7/Factory Hauler-Gunner | -6/Factory Hauler-Skirmisher | -5/Factory Hauler-Skirmisher | -5/DSF Hauler-Skirmisher | -4/Factory Hauler-Tank | -4/Waste Hauler-Tank | -4/Factory Hauler-Mutant | -3/Research Hauler-Mutant | -3/Testing Hauler-Sprinter | -2/Research Hauler-Sprinter | -2/Quarantine Hauler-Mutant | -2/Protoforge Hauler-Tank | -1/Access Resources | -11 -10 -10 -10 -9 -8 -7 -6 -5 -5 -4 -4 -4 -3 -3 -2 -2 -2 -1 ----------- Run | Yrd Mat Min Exi Min Mat Fac Fac Fac DSF Fac Was Fac Res Tes Res Qua Frg Acc Matter Collected 8875 | 239 185 28 . 182 382 255 1484 214 20 429 456 71 537 127 233 270 3058 705 Remotely . | . . . . . . . . . . . . . . . . . . . Salvage Created 9051 | 96 281 28 . 120 386 331 1178 214 80 429 . 255 409 337 233 388 3718 568 Parts 435 | 3 31 6 . 10 12 24 39 9 9 9 . 18 13 13 5 22 189 23 Haulers Intercepted 14 | . 2 . . . 1 2 4 1 . 1 . . 1 1 1 . . . Recyclers Shooed 9 | 1 . . . . 2 . 1 1 . 1 . . . 2 . 1 . . Parts Field Recycled . | . . . . . . . . . . . . . . . . . . . Retrieved Matter . | . . . . . . . . . . . . . . . . . . . Parts Self-Destructed . | . . . . . . . . . . . . . . . . . . . Prevented . | . . . . . . . . . . . . . . . . . . . Parts Restored 3 | . . . . . . . . . . . . . . . . . 3 . Faulty 3 | . . . . . . . . . . . . . . . . . 3 . Kills | -11 -10 -10 -10 -9 -8 -7 -6 -5 -5 -4 -4 -4 -3 -3 -2 -2 -2 -1 ------- Run | Yrd Mat Min Exi Min Mat Fac Fac Fac DSF Fac Was Fac Res Tes Res Qua Frg Acc Combat Hostiles Destroyed 136 | . 11 2 . 5 5 5 16 . 4 2 . 10 . . . 10 58 8 Melee 2 | . . . . . . . . . . . . . . . . . 2 . Guns 94 | . 4 2 . 2 5 2 14 . 2 2 . 5 . . . . 49 7 Cannons 4 | . . . . . . . . . . . . . . . . . 4 . AOE 33 | . 7 . . 3 . 3 2 . 2 . . 5 . . . 10 . 1 Classes Destroyed 22 | 2 5 . . . 2 . 1 . 1 1 . . . 1 . . 9 . Worker 12 | . 2 . . 1 . 1 2 . . . . . 2 . . 1 2 1 Builder 2 | . . . . . . . 1 . . . . 1 . . . . . . Tunneler 1 | 1 . . . . . . . . . . . . . . . . . . Hauler 14 | . 2 . . . 1 2 4 1 . 1 . . 1 1 1 . . . Recycler 11 | 1 . . . . 1 1 1 1 . 1 . . 2 1 1 1 . . Operator 2 | . . . . . . . . . . . . . . 1 . 1 . . Drone 5 | . . . . . . . . . . . . . . . . . 5 . Watcher 8 | . 2 . . . . . . . . 1 . 1 . 2 . . 1 1 Swarmer 50 | . 9 2 . 3 . 3 10 . . . . 9 . . . 10 . 4 Cutter 4 | . . . . . . . . . 4 . . . . . . . . . Saboteur 3 | . . . . . . . . . . . . . . . . . 3 . Grunt 21 | . 2 . . 2 3 1 5 . . . . 1 . . . . 6 1 Brawler 1 | . . . . . 1 . . . . . . . . . . . . . Duelist 1 | . . . . . . . . . . . . . . . . . 1 . Researcher 1 | . . . . . . . . . . . . . . . . . 1 . Sentry 15 | . . . . . 1 1 1 . . . . . . . . . 9 3 Specialist 2 | . . . . . . . . . . . . . . . . . 2 . Hunter 3 | . . . . . . . . . . . . . . . . . 3 . Programmer 15 | . . . . . . . . . . . . . . . . . 15 . Hotshot 3 | . . . . . . . . . . . . . . . . . 3 . Decapitator 6 | . . . . . . . . . . . . . . . . . 6 . Immortal 2 | . . . . . . . . . . . . . . . . . 2 . Overlord 1 | . . . . . . . . . . . . . . . . . 1 . Investigator 1 | . . . . . . . . . . . . . . . . . . 1 Striker 1 | . . . . . . . . . . . . . . . . . 1 . V-Series 1 | . . . . . . . . . . . . . . . . . 1 . Butcher 2 | . . . . . . . . . . 2 . . . . . . . . Best Kill Streak 10 | 2 5 2 . 3 3 4 10 2 4 3 . 7 2 1 1 10 7 4 Combat Bots Only 10 | . 3 2 . 3 2 3 7 . 4 2 . 6 . . . 10 7 4 Max Kills in Single Turn 4 | 1 2 1 . 2 1 2 4 1 2 1 . 3 1 1 1 4 2 2 Gunslinging 1 | . . . . . . . 1 . . . . . . . . . . 1 Exploded 4 | . 2 . . 2 . 2 2 . 2 . . 3 . . . 4 . 1 Melee 1 | . . . . . . . . . . . . . . . . . 1 . Uniques/NPCs Destroyed . | . . . . . . . . . . . . . . . . . . . Combat | -11 -10 -10 -10 -9 -8 -7 -6 -5 -5 -4 -4 -4 -3 -3 -2 -2 -2 -1 -------- Run | Yrd Mat Min Exi Min Mat Fac Fac Fac DSF Fac Was Fac Res Tes Res Qua Frg Acc Hostile Shots Fired 1556 | . 39 7 . 23 47 54 70 . 47 2 . 40 65 24 15 26 762 335 Missed 776 | . 12 . . 8 9 28 41 . 25 2 . 25 40 13 7 10 343 213 Hits 780 | . 27 7 . 15 38 26 29 . 22 . . 15 25 11 8 16 419 122 Melee 44 | . . . . . . . . . 7 . . . . . . . 20 17 Projectile 736 | . 27 7 . 15 38 26 29 . 15 . . 15 25 11 8 16 399 105 AOE 6 | . . . . . . . . . 3 . . . . . . . 2 1 Critical Strikes 45 | . 2 . . . 1 . 1 . 4 . . 1 2 . 1 2 28 3 Actively Blocked 29 | . . . . . . . . . 1 . . . . . . 1 24 3 Part Disruptions 3 | . . . . . . . . . . . . . . . . . 3 . Actively Blocked 1 | . . . . . . . . . . . . . . . . . 1 . Damage Taken 12959 | . 319 58 . 171 594 223 437 . 499 259 . 260 467 164 198 280 6974 2056 Core 1610 | . 76 . . 29 89 6 88 . 88 54 . 60 23 47 42 39 871 98 Absorbed by Shields 5402 | . . . . . . . . . 93 . . . 153 40 . . 3359 1757 Reduced by Siege Mode 15 | . . . . . . . . . . . . . . . . . 1 14 Redirected to Core 132 | . . . . . . . . . . . . . . . . . 132 . Redirected to Shielding 686 | . . . . . . . 14 . 91 . . . 10 56 37 . 478 . Ignored by Resistances 829 | . . . . . . . . . . . . . . 25 9 113 596 86 Core Remaining (%) 89 | 100 . . . 80 89 99 92 . 93 . . 92 . 95 . . 64 94 Volleys Fired 609 | 3 38 2 . 10 32 13 50 4 9 26 . 17 49 58 10 20 232 36 Largest 3 | 2 2 2 . 2 2 3 3 3 3 3 . 3 2 1 1 1 3 3 Hottest 225 | 60 60 40 . 85 105 84 84 84 95 90 . 75 90 90 50 50 225 113 Shots Fired 1066 | 6 65 4 . 18 63 35 145 12 19 68 . 47 78 58 10 20 322 96 Gun 856 | 6 54 4 . 16 63 33 143 12 17 63 . 45 56 . . . 252 92 Cannon 186 | . . . . . . . . . . 5 . . 22 58 10 17 70 4 Launcher 24 | . 11 . . 2 . 2 2 . 2 . . 2 . . . 3 . . Special . | . . . . . . . . . . . . . . . . . . . Kinetic 786 | 3 42 4 . 15 27 33 143 12 17 63 . 45 56 . . . 234 92 Thermal 238 | 3 12 . . 1 36 . . . . 5 . . 22 58 10 17 70 4 Explosive 24 | . 11 . . 2 . 2 2 . 2 . . 2 . . . 3 . . Electromagnetic 18 | . . . . . . . . . . . . . . . . . 18 . Robot Hit Streak 21 | 5 8 2 . 9 14 11 16 14 7 8 . 11 12 21 7 8 14 16 Robot Miss Streak 9 | . 7 3 . 1 2 2 5 . 2 5 . 3 2 1 . . 9 4 Penetration Max 2 | . . . . . . 1 1 . . . . . . . . . 2 . Secondary Targets 11 | . . . . . 2 . 3 . . . . 2 . . . . 2 2 Max Gunslinging Chain 1 | . . . . . 1 . 1 . . . . 1 . . . . 1 1 Shots Hit Robots 664 | 5 31 2 . 13 49 24 98 8 11 38 . 23 45 17 6 6 223 65 Core Hits 370 | 3 21 2 . 9 15 14 47 4 6 17 . 17 20 9 2 18 136 30 Critical Kills 41 | . . . . . . . 2 . . . . 1 . . . . 38 . Critical Parts Destroyed 43 | . . . . . . . 3 . . . . . 1 . . . 39 . Critical Strikes 102 | . . . . . 2 . 6 . . . . 1 1 . . . 92 . Burn 2 | . . . . . 2 . . . . . . . . . . . . . Destroy 100 | . . . . . . . 6 . . . . 1 1 . . . 92 . Melee Attacks 87 | . . . . . . . 1 . . 1 . . . . 3 18 52 12 Impact . | . . . . . . . . . . . . . . . . . . . Slashing 85 | . . . . . . . . . . . . . . . 3 18 52 12 Piercing . | . . . . . . . . . . . . . . . . . . . Sneak Attacks 8 | . . . . . . . 1 . . 1 . . . . . 5 1 . Combat Hostiles . | . . . . . . . . . . . . . . . . . . . Follow-up Attacks 3 | . . . . . . . . . . . . . . . . . 3 . Damage Inflicted 19160 | 54 860 22 . 285 790 710 2907 162 478 652 . 929 827 605 313 1548 5888 2130 Guns 11275 | 54 396 22 . 153 707 532 2290 162 220 652 . 462 727 . . . 3352 1546 Cannons 2056 | . . . . . 83 . . . . . . . 100 605 171 . 1059 38 Explosions 3581 | . 464 . . 132 . 178 617 . 258 . . 467 . . . 959 155 351 Melee 2221 | . . . . . . . . . . . . . . . 142 589 1295 195 Ramming 27 | . . . . . . . . . . . . . . . . . 27 . Kinetic 10611 | 33 364 22 . 153 354 532 2290 162 220 652 . 462 727 . . . 3094 1546 Thermal 3233 | 21 32 . . . 436 . 616 . . . . . 100 605 171 . 1214 38 Explosive 2459 | . 464 . . 132 . 178 1 . 258 . . 467 . . . 959 . . Electromagnetic 258 | . . . . . . . . . . . . . . . . . 258 . Impact . | . . . . . . . . . . . . . . . . . . . Slashing 2221 | . . . . . . . . . . . . . . . 142 589 1295 195 Piercing . | . . . . . . . . . . . . . . . . . . . Entropic 351 | . . . . . . . . . . . . . . . . . . 351 Highest Corruption 26 | . . . . 15 20 1 2 . . 13 19 22 . 16 1 1 26 . Average Corruption 13 | . . . . 15 15 1 2 . . 8 16 20 . 13 1 1 15 . Corruption Purged . | . . . . . . . . . . . . . . . . . . . Corruption Blocked . | . . . . . . . . . . . . . . . . . . . Effects 125 | . . . . 3 18 . 9 . . 2 2 20 . 1 . . 70 . Message Errors 31 | . . . . 2 7 . 5 . . . . 3 . 1 . . 13 . Matter Fused 27 | . . . . . 4 . 2 . . . . 5 . . . . 16 . Heat Flow Errors 14 | . . . . . 3 . . . . . 1 3 . . . . 7 . Energy Discharges 6 | . . . . . . . 1 . . . . 2 . . . . 3 . Parts Rejected 4 | . . . . . . . . . . . 1 1 . . . . 2 . Parts Fused 2 | . . . . . . . . . . . . . . . . . 2 . Data Loss (minor) 15 | . . . . 1 . . . . . 2 . 3 . . . . 9 . Data Loss (major) 5 | . . . . . 1 . . . . . . 1 . . . . 3 . Misfires 3 | . . . . . 1 . . . . . . . . . . . 2 . Misdirections 10 | . . . . . 1 . . . . . . 1 . . . . 8 . Weapon Failures 8 | . . . . . 1 . 1 . . . . 1 . . . . 5 . Overload Shots 2 | . . . . . . . . . . . . . . . . . 2 . Effects 1 | . . . . . . . . . . . . . . . . . 1 . Short Circuit 1 | . . . . . . . . . . . . . . . . . 1 . Overflow Damage 581 | . 16 . . 10 . . 122 . . . . 28 . 6 28 244 85 42 Projectiles 84 | . . . . . . . . . . . . . . 6 28 . 50 . Explosions 218 | . 16 . . 10 . . 122 . . . . 28 . . . . . 42 Melee 279 | . . . . . . . . . . . . . . . . 244 35 . Knockbacks . | . . . . . . . . . . . . . . . . . . . Impact . | . . . . . . . . . . . . . . . . . . . Kinetic . | . . . . . . . . . . . . . . . . . . . Secondary . | . . . . . . . . . . . . . . . . . . . Self-Inflicted Damage 106 | . 54 . . . . . 52 . . . . . . . . . . . Shots 4 | . 2 . . . . . 2 . . . . . . . . . . . Rammed . | . . . . . . . . . . . . . . . . . . . Targets Rammed 1 | . . . . . . . . . . . . . . . . . 1 . Kicked 1 | . . . . . . . . . . . . . . . . . 1 . Crushed . | . . . . . . . . . . . . . . . . . . . Highest Temperature 354 | 20 . . . 30 306 138 172 . . 354 209 178 . . 302 159 214 153 Average Temperature 67 | 20 . . . 12 99 49 54 . . 99 190 45 . . 133 75 74 32 Received Heat Transfer 1477 | . 48 . . 78 243 12 144 . 4 . . 9 48 9 9 . 583 290 Effects 2 | . . . . . 2 . . . . . . . . . . . . . Interference 2 | . . . . . 2 . . . . . . . . . . . . . Siege Activations 7 | . . . . . . . . . . . . . . . . . 5 2 Total Turns 38 | . . . . . . . . . . . . . . . . . 23 15 Longest Duration 12 | . . . . . . . . . . . . . . . . . 10 12 Martial Activations . | . . . . . . . . . . . . . . . . . . . Shielding Activations . | . . . . . . . . . . . . . . . . . . . Robots Disrupted . | . . . . . . . . . . . . . . . . . . . Combat Hostiles . | . . . . . . . . . . . . . . . . . . . Robots Corrupted 2 | . . . . . . . . . . . . . . . . . 2 . Combat Hostiles 2 | . . . . . . . . . . . . . . . . . 2 . Parts Fried 3 | . . . . . . . . . . . . . . . . . 3 . Impact Corruptions . | . . . . . . . . . . . . . . . . . . . Robots Melted 1 | . . . . . . . . . . . . . . . . . 1 . Combat Hostiles 1 | . . . . . . . . . . . . . . . . . 1 . Parts Melted 7 | . . . . . 1 . 1 . . . . . 1 . 1 . 3 . Heat Transferred 3565 | 50 75 . . . 1162 . 450 . . . . . 111 629 148 . 903 37 Parts Sabotaged 1 | . . . . . . . . . . . . . . . . . . 1 Parts Stolen . | . . . . . . . . . . . . . . . . . . . Parts Stripped . | . . . . . . . . . . . . . . . . . . . Power Chain Reactions 1 | . . . . . . . . . . . . . . . . . 1 . Alert | -11 -10 -10 -10 -9 -8 -7 -6 -5 -5 -4 -4 -4 -3 -3 -2 -2 -2 -1 ------- Run | Yrd Mat Min Exi Min Mat Fac Fac Fac DSF Fac Was Fac Res Tes Res Qua Frg Acc Maximum Alert Level 5 | . 1 . . . . 1 3 1 1 1 . 2 2 2 2 2 5 5 Low Security (%) 40 | 100 71 100 . 100 100 85 17 . . 42 100 63 29 3 . 36 16 . Level 1 22 | . 28 . . . . 14 . 100 100 57 . 25 69 47 89 6 13 . Level 2 14 | . . . . . . . 60 . . . . 11 1 48 10 56 15 . Level 3 5 | . . . . . . . 21 . . . . . . . . . 15 . Level 4 5 | . . . . . . . . . . . . . . . . . 22 . Level 5 5 | . . . . . . . . . . . . . . . . . 16 18 High Security 5 | . . . . . . . . . . . . . . . . . . 81 Max Security . | . . . . . . . . . . . . . . . . . . . Peak Influence 2971 | 10 235 90 . 110 156 311 802 392 394 354 88 545 412 631 532 468 2971 2387 Initial 1780 | . . 45 . . 27 58 142 385 265 206 88 54 277 24 305 299 240 1780 Average 543 | 3 150 52 . 61 83 105 541 384 304 217 84 139 215 406 336 344 995 2072 Influence Increases 10555 | 10 444 65 . 170 372 460 970 14 139 287 . 652 609 955 327 469 3855 757 Destroy 0b10 Robot/C 3640 | . 220 40 . 100 200 200 340 . 80 40 . 200 20 140 . 200 1520 340 Destroy 0b10 Robot/NC 340 | 10 30 . . 5 15 25 40 10 . 15 . 10 25 65 10 15 55 10 Destroy Leader 598 | . 48 10 . 20 52 56 58 2 10 4 . 32 12 26 2 20 194 52 Allied During Kill 643 | . . . . . 45 83 86 . . . . . 16 32 . . 251 130 Successful Hack 228 | . 19 . . . . 12 52 . . 9 . 8 51 23 36 18 . . Disable Machine 990 | . 15 . . . 30 60 225 . 15 15 . . . 210 . 135 285 . Anti-Garrison Action 200 | . . . . . . . . . . . . . . . . . 200 . Destroy Structure 1486 | . 67 . . . . 24 94 2 34 8 . 46 20 114 21 81 855 120 Partial Spotted 225 | . . . . . . . 30 . . 15 . 15 45 15 . . 105 . Lose Combat Pursuer 1275 | . 45 15 . 45 30 . 45 . . 45 . 45 420 60 30 . 390 105 Miscellaneous 930 | . . . . . . . . . . 136 . 296 . 270 228 . . . Influence Decreases 8218 | 10 327 162 20 100 314 296 476 421 124 428 175 201 1094 456 338 573 1315 1388 Entered New Map 3366 | . . 72 20 . 43 70 150 401 114 188 165 24 252 20 238 233 188 1188 Time Decay 2852 | 10 327 90 . 100 221 166 246 20 . 120 10 177 262 206 80 180 597 40 Search Patrol Dispatched 200 | . . . . . . . . . . 100 . . 100 . . . . . Lost Part 350 | . . . . . 10 . . . 10 20 . . 10 . 20 10 190 80 Lost Ally 610 | . . . . . 40 60 80 . . . . . 170 80 . . 100 80 Purge Threat 840 | . . . . . . . . . . . . . 300 150 . 150 240 . Squads Dispatched 71 | . 1 . . . 1 4 6 . 3 1 . 4 4 9 2 4 15 17 Investigation 6 | . . . . . 1 . . . . . . 2 1 . 1 . 1 . Extermination 16 | . . . . . . 2 1 . . . . 1 2 2 1 3 4 . Reinforcement 23 | . 1 . . . . 1 5 . 3 1 . 1 1 6 . 1 3 . Assault 21 | . . . . . . . . . . . . . . . . . 7 14 Garrison 5 | . . . . . . 1 . . . . . . . 1 . . . 3 Intercept . | . . . . . . . . . . . . . . . . . . . Searches Triggered 2 | . . . . . . . . . . 1 . . 1 . . . . . Construction Impeded . | . . . . . . . . . . . . . . . . . . . Haulers Reinforced 6 | . . . . . . . 3 . . 1 . . 1 1 . . . . Active Scanning Responses . | . . . . . . . . . . . . . . . . . . . Cargo Convoy Interrupts . | . . . . . . . . . . . . . . . . . . . Stealth | -11 -10 -10 -10 -9 -8 -7 -6 -5 -5 -4 -4 -4 -3 -3 -2 -2 -2 -1 --------- Run | Yrd Mat Min Exi Min Mat Fac Fac Fac DSF Fac Was Fac Res Tes Res Qua Frg Acc Distress Signals 14 | . 1 . . . 3 . . . . . . 1 4 1 3 . 1 . Communications Jammed . | . . . . . . . . . . . . . . . . . . . Distress Signals . | . . . . . . . . . . . . . . . . . . . Times Spotted 392 | . 18 3 . 12 12 10 22 . 9 6 5 37 38 18 16 20 117 49 Peak Tracking Total 18 | . 4 3 . 4 11 3 4 . 7 3 6 10 11 6 10 11 18 12 Tactical Retreats 41 | . 2 1 . 3 2 . 3 . . 1 . 2 9 3 2 . 8 5 ECM-based Alert Blocks 13 | . . . . . . . . . . . . 10 . 1 2 . . . Traps | -11 -10 -10 -10 -9 -8 -7 -6 -5 -5 -4 -4 -4 -3 -3 -2 -2 -2 -1 ------- Run | Yrd Mat Min Exi Min Mat Fac Fac Fac DSF Fac Was Fac Res Tes Res Qua Frg Acc Traps Triggered 12 | . 1 . . . 1 1 2 . 1 2 . . 1 . . . 3 . Indirectly . | . . . . . . . . . . . . . . . . . . . Trap Hack Attempts . | . . . . . . . . . . . . . . . . . . . Triggered . | . . . . . . . . . . . . . . . . . . . Disarmed . | . . . . . . . . . . . . . . . . . . . Reprogrammed . | . . . . . . . . . . . . . . . . . . . Reused . | . . . . . . . . . . . . . . . . . . . Traps Extracted . | . . . . . . . . . . . . . . . . . . . Installed . | . . . . . . . . . . . . . . . . . . . Triggered . | . . . . . . . . . . . . . . . . . . . Machines | -11 -10 -10 -10 -9 -8 -7 -6 -5 -5 -4 -4 -4 -3 -3 -2 -2 -2 -1 ---------- Run | Yrd Mat Min Exi Min Mat Fac Fac Fac DSF Fac Was Fac Res Tes Res Qua Frg Acc Machines Disabled 70 | . 2 . . . 2 4 15 . 1 1 . . . 15 . 10 20 . Max in Single Turn 12 | . 1 . . . 1 2 12 . 1 1 . . . 1 . 1 1 . Garrison Access 2 | . . . . . . . . . . . . . 1 . . . 1 . Energy Cycler 1 | . . . . . . . . . . . . . . . . . . 1 Machines Repaired . | . . . . . . . . . . . . . . . . . . . Machines Dismantled . | . . . . . . . . . . . . . . . . . . . Machines Sabotaged . | . . . . . . . . . . . . . . . . . . . Overloaded Fab Kills . | . . . . . . . . . . . . . . . . . . . Hacking | -11 -10 -10 -10 -9 -8 -7 -6 -5 -5 -4 -4 -4 -3 -3 -2 -2 -2 -1 --------- Run | Yrd Mat Min Exi Min Mat Fac Fac Fac DSF Fac Was Fac Res Tes Res Qua Frg Acc Machines Accessed 59 | . 2 . 2 . 2 4 7 1 . 4 . 7 9 6 4 6 5 . Terminals 35 | . 2 . . . 2 2 4 1 . 3 . 1 5 5 3 4 3 . Fabricators 6 | . . . . . . . 1 . . 1 . 3 1 . . . . . Repair Stations 4 | . . . . . . . 1 . . . . 1 1 . 1 . . . Recycling Units . | . . . . . . . . . . . . . . . . . . . Scanalyzers 8 | . . . . . . 1 . . . . . 2 1 1 . 2 1 . Garrison Access 4 | . . . . . . 1 1 . . . . . 1 . . . 1 . Total Hacks 145 | . 8 . 2 . 7 7 12 1 . 9 . 24 27 11 10 12 15 . Successful 70 | . 5 . 2 . 2 3 3 1 . 1 . 11 14 6 7 4 11 . Failed 74 | . 3 . . . 5 4 9 . . 8 . 13 13 5 3 8 3 . Catastrophic 14 | . . . . . . . 4 . . 3 . . 2 . . 3 2 . Database Lockouts 1 | . . . . . . . . . . . . . . . . . 1 . Manual 57 | . 8 . 1 . 4 . 4 . . 7 . 6 8 1 2 5 11 . Terminals 90 | . 8 . . . 7 5 7 1 . 8 . 3 14 9 9 9 10 . Fabricators 18 | . . . . . . . 2 . . 1 . 10 5 . . . . . Repair Stations 7 | . . . . . . . 1 . . . . 2 3 . 1 . . . Recycling Units . | . . . . . . . . . . . . . . . . . . . Scanalyzers 20 | . . . . . . 1 . . . . . 9 2 2 . 3 3 . Garrison Access 8 | . . . . . . 1 2 . . . . . 3 . . . 2 . Terminal Hacks 36 | . 3 . 2 . 1 2 1 1 . 1 . . 6 5 5 2 7 . Record 1 | . . . 1 . . . . . . . . . . . . . . . Part Schematic 3 | . . . . . . . . . . 1 . . . . . 1 1 . Robot Analysis 1 | . . . . . . . . . . . . . . . 1 . . . Prototype ID Bank 7 | . 2 . . . 1 1 . . . . . . . 1 1 . 1 . Open DSF 1 | . . . . . . . . 1 . . . . . . . . . . Level Access Points 1 | . . . . . . . . . . . . . . 1 . . . . Branch Access Points 2 | . . . . . . . 1 . . . . . 1 . . . . . Terminal Index 1 | . 1 . . . . . . . . . . . . . . . . . Alert Level 3 | . . . . . . . . . . . . . 1 1 . . 1 . Unreport Threat 6 | . . . . . . . . . . . . . 2 1 . 1 2 . Locate Traps 4 | . . . . . . 1 . . . . . . 1 1 1 . . . Recall Investigation 1 | . . . . . . . . . . . . . . . 1 . . . Registered Components 2 | . . . . . . . . . . . . . 1 . 1 . . . Zone Layout 1 | . . . . . . . . . . . . . . . . . 1 . Proto ID Catalog 2 | . . . 1 . . . . . . . . . . . . . 1 . Fabricator Hacks 6 | . . . . . . . . . . . . 4 2 . . . . . Network Status 1 | . . . . . . . . . . . . . 1 . . . . . Load Schematic 1 | . . . . . . . . . . . . 1 . . . . . . Build 4 | . . . . . . . . . . . . 3 1 . . . . . Repair Station Hacks 2 | . . . . . . . . . . . . 1 1 . . . . . Scan Component 2 | . . . . . . . . . . . . 1 1 . . . . . Recycling Unit Hacks . | . . . . . . . . . . . . . . . . . . . Scanalyzer 10 | . . . . . . 1 . . . . . 4 1 1 . 2 1 . Insert Component 6 | . . . . . . . . . . . . 2 1 1 . 2 . . Analyze 2 | . . . . . . . . . . . . 2 . . . . . . Retrieve Study 2 | . . . . . . 1 . . . . . . . . . . 1 . Garrison Access Hacks 1 | . . . . . . . . . . . . . 1 . . . . . Seal Access 1 | . . . . . . . . . . . . . 1 . . . . . Unauthorized Hacks 15 | . 2 . . . 1 . 2 . . . . 2 3 . 2 . 3 . Terminals 7 | . 2 . . . 1 . 1 . . . . . 1 . 1 . 1 . Track 1 | . . . . . . . . . . . . . . . 1 . . . Assimilate 2 | . . . . . 1 . . . . . . . 1 . . . . . Botnet 4 | . 2 . . . . . 1 . . . . . . . . . 1 . Fabricators 5 | . . . . . . . 1 . . . . 2 2 . . . . . Prioritize 2 | . . . . . . . . . . . . 1 1 . . . . . Haulers 3 | . . . . . . . 1 . . . . 1 1 . . . . . Repair Stations 1 | . . . . . . . . . . . . . . . 1 . . . Patch 1 | . . . . . . . . . . . . . . . 1 . . . Recycling Units . | . . . . . . . . . . . . . . . . . . . Scanalyzers 1 | . . . . . . . . . . . . . . . . . 1 . Researchers 1 | . . . . . . . . . . . . . . . . . 1 . Garrison Access 1 | . . . . . . . . . . . . . . . . . 1 . Jam 1 | . . . . . . . . . . . . . . . . . 1 . Data Cores Recovered . | . . . . . . . . . . . . . . . . . . . Used . | . . . . . . . . . . . . . . . . . . . Hacking Detections 49 | . 1 . . . 2 3 7 . . 4 . 6 7 6 3 6 4 . Full Trace Events 3 | . . . . . . . . . . . . 2 1 . . . . . Feedback Events . | . . . . . . . . . . . . . . . . . . . Feedback Blocked . | . . . . . . . . . . . . . . . . . . . Robot Schematics Acquired . | . . . . . . . . . . . . . . . . . . . Robots Built 3 | . . . . . . . . . . . . . 3 . . . . . Authchips . | . . . . . . . . . . . . . . . . . . . Time 169 | . . . . . . . . . . . . . 169 . . . . . Total Robot Build Rating 18 | . . . . . . . . . . . . . 18 . . . . . Part Schematics Acquired 8 | . . . . . . . . . . 1 . . . . . 1 6 . Parts Built 4 | . . . . . . . . . . . . 4 . . . . . . Authchips 1 | . . . . . . . . . . . . 1 . . . . . . Time 292 | . . . . . . . . . . . . 292 . . . . . . Total Part Build Rating 26 | . . . . . . . . . . . . 26 . . . . . . Part Studies Acquired 2 | . . . . . . 1 . . . . . . . . . . 1 . Parts Repaired . | . . . . . . . . . . . . . . . . . . . Time . | . . . . . . . . . . . . . . . . . . . Parts Recycled . | . . . . . . . . . . . . . . . . . . . Recycled Matter . | . . . . . . . . . . . . . . . . . . . Retrieved Matter . | . . . . . . . . . . . . . . . . . . . Retrieved Components . | . . . . . . . . . . . . . . . . . . . Parts Scanalyzed 1 | . . . . . . . . . . . . 1 . . . . . . Part Schematics Acquired . | . . . . . . . . . . . . . . . . . . . Parts Damaged . | . . . . . . . . . . . . . . . . . . . Bothacking | -11 -10 -10 -10 -9 -8 -7 -6 -5 -5 -4 -4 -4 -3 -3 -2 -2 -2 -1 ------------ Run | Yrd Mat Min Exi Min Mat Fac Fac Fac DSF Fac Was Fac Res Tes Res Qua Frg Acc Used RIF Installer . | . . . . . . . . . . . . . . . . . . . Robots Hacked 2 | . . . . . . . 1 . . 1 . . . . . . . . Non-combat 2 | . . . . . . . 1 . . 1 . . . . . . . . Combat . | . . . . . . . . . . . . . . . . . . . Robot Hacks Applied 2 | . . . . . . . 1 . . 1 . . . . . . . . find_chute 2 | . . . . . . . 1 . . 1 . . . . . . . . Relay Couplers Released . | . . . . . . . . . . . . . . . . . . . Fabnet Peak Effective % . | . . . . . . . . . . . . . . . . . . . Robots Rewired 1 | . . . . . . . . . . . . . . 1 . . . . Allies Hacked 1 | . . . . . . . . . . . . . 1 . . . . . Hacks Repelled . | . . . . . . . . . . . . . . . . . . . Allies | -11 -10 -10 -10 -9 -8 -7 -6 -5 -5 -4 -4 -4 -3 -3 -2 -2 -2 -1 -------- Run | Yrd Mat Min Exi Min Mat Fac Fac Fac DSF Fac Was Fac Res Tes Res Qua Frg Acc Total Allies 38 | . . . . . 5 4 5 . . . . . 9 4 . . 7 4 Largest Group 7 | . . . . . 5 7 5 . . . . . 6 4 . . 4 2 Highest-Rated Group 438 | . . . . . 80 208 245 . . . . . 195 300 . . 438 290 Highest-Rated Ally 219 | . . . . . 16 40 49 . . . . . 45 123 . . 219 145 Total Orders . | . . . . . . . . . . . . . . . . . . . Ally Attacks 259 | . . . . . 37 28 12 . . . . . 32 13 . . 79 58 Total Damage 14804 | . . . . . 478 416 192 . . . . . 537 2689 . . 7308 3184 Kills 62 | . . . . . 6 6 1 . . . . . 1 15 . . 25 8 Allies Corrupted 1 | . . . . . . . . . . . . . . 1 . . . . Allies Melted . | . . . . . . . . . . . . . . . . . . . X0-1V1 Amusement Gains 289 | . 18 . . . . 15 5 . . 25 . . 10 . 5 42 118 51 Good Acts 113 | . 1 2 . . 8 5 10 1 1 5 2 3 11 4 . 8 40 12 Bad Acts 69 | . . 1 . 4 3 2 . . . 3 1 9 8 11 5 8 10 4 Intel | -11 -10 -10 -10 -9 -8 -7 -6 -5 -5 -4 -4 -4 -3 -3 -2 -2 -2 -1 ------- Run | Yrd Mat Min Exi Min Mat Fac Fac Fac DSF Fac Was Fac Res Tes Res Qua Frg Acc Active Infowar (turns) 1998 | . . . . . . . . 44 88 197 . 27 365 210 28 312 252 475 Optics 418 | . . . . . . . . . . 53 . . 365 . . . . . Sensors 1011 | . . . . . . . . 44 88 144 . . 45 183 . 255 252 . A.S.S. 475 | . . . . . . . . . . . . . . . . . . 475 Seismic 76 | . . . . . . . . . . . . . . . 19 57 . . ECM 64 | . . . . . . . . . . . . 27 . 27 10 . . . Robot Analysis Total 1 | . . . . . . . . . . . . . . . 1 . . . Derelict Logs Recovered 1 | . . . . 1 . . . . . . . . . . . . . . Drone Launches . | . . . . . . . . . . . . . . . . . . . Drone Recoveries . | . . . . . . . . . . . . . . . . . . . Exploration | -11 -10 -10 -10 -9 -8 -7 -6 -5 -5 -4 -4 -4 -3 -3 -2 -2 -2 -1 ------------- Run | Yrd Mat Min Exi Min Mat Fac Fac Fac DSF Fac Was Fac Res Tes Res Qua Frg Acc Turns Passed 7785 | 23 811 183 262 230 542 401 521 44 99 252 30 422 565 427 178 372 1948 475 Spaces Moved 9746 | 6 599 141 217 157 387 490 829 70 120 488 84 679 1154 704 380 899 2103 239 Core . | . . . . . . . . . . . . . . . . . . . Treads 2 | 2 . . . . . . . . . . . . . . . . . . Legs 531 | . . . . . . . . . . . . . . . . . 292 239 Wheels 1746 | 4 599 141 217 157 387 241 . . . . . . . . . . . . Hover 922 | . . . . . . . . . . . . . . . . . 922 . Flight 6545 | . . . . . . 249 829 70 120 488 84 679 1154 704 380 899 889 . Fastest Speed 12 | 100 100 120 120 120 90 39 39 39 39 26 34 34 26 26 12 12 12 130 Average Speed 51 | 120 110 120 120 120 90 64 39 39 39 33 34 34 32 33 28 23 47 132 Slowest Speed 250 | 160 120 120 120 120 105 90 39 39 39 34 34 39 34 34 31 96 250 140 Overloaded Moves 577 | . . . . . . . . . . 6 . . 195 33 6 67 270 . Propulsion Burnouts . | . . . . . . . . . . . . . . . . . . . Robots Hopped 81 | . . . . . . . 9 1 4 1 6 1 30 3 4 4 18 . Potential Cave-ins 28 | . . . . . . . . . . 1 . . 4 4 . 2 17 . Cave-ins Triggered 1 | . . . . . . . . . . 1 . . . . . . . . Exploration Rate (%) 42 | 2 98 41 59 43 28 19 34 2 92 12 75 21 41 80 15 88 50 8 Regions Visited 18 Branch Regions 6 Pre-discovered Areas 1 | . . . 1 . . . . . . . . . . . . . . . Known Exits Taken 8 | . . . . . 1 . . 1 . . . 1 1 1 1 1 1 . Unknown Exits Taken 7 | 1 1 1 1 1 . 1 1 . . . . . . . . . . . Scrap Searched . | . . . . . . . . . . . . . . . . . . . Spaces Dug 129 | . 30 . . . . . 22 . . 1 . . 8 12 7 11 34 4 Terrain Destroyed 451 | . 70 . . . . 21 108 . 18 5 . 26 17 29 7 33 56 61 Melee 26 | . . . . . . . . . . . . . . . 1 8 13 4 Projectile 112 | . . . . . . . . . 1 5 . . 17 29 6 11 43 . AOE 313 | . 70 . . . . 21 108 . 17 . . 26 . . . 14 . 57 Terrain Rammed . | . . . . . . . . . . . . . . . . . . . Walls Destroyed . | . . . . . . . . . . . . . . . . . . . Machines Disabled . | . . . . . . . . . . . . . . . . . . . Actions | -11 -10 -10 -10 -9 -8 -7 -6 -5 -5 -4 -4 -4 -3 -3 -2 -2 -2 -1 --------- Run | Yrd Mat Min Exi Min Mat Fac Fac Fac DSF Fac Was Fac Res Tes Res Qua Frg Acc Total 11550 | 16 678 151 218 180 518 551 905 76 154 545 78 844 1261 831 428 1008 2768 340 Wait 520 | . 6 7 . 5 43 12 8 1 5 8 . 120 56 10 16 11 173 39 Move 9572 | 5 598 140 216 156 386 489 810 67 111 485 74 676 1096 697 371 890 2067 238 Hop 73 | . . . . . . . 9 1 4 1 3 1 27 3 4 4 16 . Pick Up 155 | 1 6 1 2 2 21 21 6 1 8 5 . 9 9 11 8 15 28 1 Fast Attach 55 | . 3 . . 1 9 1 1 . 1 . 1 4 2 7 2 6 15 2 Attach 84 | . . . . . 2 2 3 2 2 5 . 2 4 3 5 5 43 6 Detach 84 | . 2 . . 1 7 4 2 . 1 1 . 2 2 10 4 9 39 . Swap 165 | 3 18 . . 3 7 4 8 . 5 8 . 12 11 13 4 16 51 2 Drop 98 | 4 7 1 . 2 11 5 5 . 5 4 . 1 5 7 1 14 26 . Fire 609 | 3 38 2 . 10 32 13 50 4 9 26 . 17 49 58 10 20 232 36 Melee 84 | . . . . . . . 1 . . 1 . . . . 3 18 49 12 Ram . | . . . . . . . . . . . . . . . . . . . Kick 1 | . . . . . . . . . . . . . . . . . 1 . Crush . | . . . . . . . . . . . . . . . . . . . Escape Stasis 38 | . . . . . . . 2 . 3 1 . . . . . . 28 4 Rewire 12 | . . . . . . . . . . . . . . 12 . . . . Trap . | . . . . . . . . . . . . . . . . . . . Miscellaneous . | . . . . . . . . . . . . . . . . . . . Route ------- -11/Scrapyard -10/Materials (discovered 5 exits: [*Mat x3] / [*Min] / [*Sub]) -10/Mines (discovered 2 exits: [*Mat] / *Exi) -10/Exiles -9/Mines -8/Materials (discovered 3 exits: *Fac x3) -7/Factory -6/Factory (discovered 3 exits: *Fac / Low x2) -5/Factory -5/DSF -4/Factory (discovered 2 exits: *Res x2) -4/Waste -4/Factory -3/Research (discovered 5 exits: *Res x2 / Arm / *Tes x2) -3/Testing -2/Research (discovered 2 exits: *Acc / *Qua) -2/Quarantine (discovered 3 exits: *Acc / [*Sec] / *Frg) -2/Protoforge -1/Access To Fleet Rendezvous History --------- Turn | Location | Event 17 | -11/Scrapyard | Discovered new exit (range 3) 24 | -11/Scrapyard | Entered Materials 107 | -10/Materials | Discovered new exit (range 13) 232 | -10/Materials | Discovered new exit (range 13) 274 | -10/Materials | Discovered new exit (range 13) 302 | -10/Materials | Build established: Mutant 362 | -10/Materials | Discovered new exit (range 16) 527 | -10/Materials | Discovered new exit (range 10) 799 | -10/Materials | Prayed at D.C.S.S. Altar Unit 810 | -10/Materials | Core integrity restored by X0-1V1 (+37) 835 | -10/Materials | Entered Mines 842 | -10/Mines | Received a Rocket Launcher from a helpful Derelict 854 | -10/Mines | Ranged accuracy permanently improved by X0-1V1 (+5%) 939 | -10/Mines | Discovered new exit (range 6) 1012 | -10/Mines | Deemed a non-threat by the Exiles lab entrance 1013 | -10/Mines | Discovered new exit (range 5) 1013 | -10/Mines | Melee accuracy permanently improved by X0-1V1 (+5%) 1018 | -10/Mines | Entered Exiles 1046 | -10/Exiles | Met 8R-AWN 1068 | -10/Exiles | Met EX-HEX 1101 | -10/Exiles | Met EX-BIN 1116 | -10/Exiles | Aligned with FarCom system 1117 | -10/Exiles | Given EX-Vault access code 1144 | -10/Exiles | Opened EX-Vault 1153 | -10/Exiles | Found Lightpack 2.0 1160 | -10/Exiles | Found Flying Fortress v7 1186 | -10/Exiles | Warned to stay clear of 0b10 Research branches 1224 | -10/Exiles | Met EX-DEC 1233 | -10/Exiles | Learned location of Zion (-7) 1268 | -10/Exiles | Discovered new exit (range 12) 1280 | -10/Exiles | Stole two prototypes: Flying Fortress v7, Lightpack 2.0 1280 | -10/Exiles | Entered Mines 1288 | -9/Mines | Learned Materials stockpile data 1376 | -9/Mines | X0-1V1 vaporized surrounding terrain (radius 22) 1415 | -9/Mines | Found a damaged Exp. Sensor Array with a note attached 1420 | -9/Mines | Found Prototype Device 1443 | -9/Mines | System corruption reached 10% 1502 | -9/Mines | Discovered new exit (range 7) 1510 | -9/Mines | Entered Materials 1510 | -8/Materials | Evolved 4 slots: Propulsion x2, Utility x2 1551 | -8/Materials | Identified exit to Factory 1551 | -8/Materials | X0-1V1 revealed exit location to -7/Factory 1572 | -8/Materials | X0-1V1 sent hostile B-36 Bruiser (x3) 1620 | -8/Materials | System corruption reached 10% 1669 | -8/Materials | X0-1V1 sent allied G-47 Trooper (x5) 1808 | -8/Materials | Build established: Hauler-Mutant 1809 | -8/Materials | Core integrity permanently improved by X0-1V1 (+400) 1867 | -8/Materials | Discovered exit to Factory (range 15) 1893 | -8/Materials | X0-1V1 activates XOMVISION 1913 | -8/Materials | X0-1V1 revealed exit location to -7/Factory 1971 | -8/Materials | Met 7R-MNS 2052 | -8/Materials | Entered Factory 2052 | -7/Factory | Accompanied by 3 allies 2052 | -7/Factory | Evolved 2 slots: Propulsion x1, Weapon x1 2054 | -7/Factory | FarCom data flow suspended 2190 | -7/Factory | X0-1V1 sent you to a vault 2258 | -7/Factory | Garrison activated, responded to threat 2358 | -7/Factory | Build established: Hauler-Gunner 2374 | -7/Factory | X0-1V1 foreshadows a heat wave 2414 | -7/Factory | Discovered new exit (range 11) 2419 | -7/Factory | Ambient heat levels rising (+10) 2453 | -7/Factory | Entered another Factory area 2453 | -6/Factory | Accompanied by 4 allies 2453 | -6/Factory | Evolved 2 slots: Utility x2 2569 | -6/Factory | X0-1V1 activates XOMVISION 2598 | -6/Factory | Destroyed 7 combat bots 2643 | -6/Factory | Lost 4 allies 2696 | -6/Factory | Identified exit to Lower Caves 2827 | -6/Factory | X0-1V1 sent you to a vault 2954 | -6/Factory | X0-1V1 activates XOMVISION 2968 | -6/Factory | Discovered new exit (range 16) 2974 | -6/Factory | Entered another Factory area 2974 | -5/Factory | Evolved 2 slots: Utility x2 2974 | -5/Factory | Identified Exp. Sensor Array 2977 | -5/Factory | Identified exit to DSF 3018 | -5/Factory | Entered DSF 3033 | -5/DSF | Additional patrols routed to DSF 3112 | -5/DSF | Discovered new exit (range 11) 3117 | -5/DSF | Identified exit to Factory 3117 | -5/DSF | Entered Factory 3117 | -4/Factory | Evolved 2 slots: Power x1, Propulsion x1 3123 | -4/Factory | Identified exit to Research 3123 | -4/Factory | X0-1V1 revealed exit location to -3/Research 3180 | -4/Factory | X0-1V1 sent hostile Butcher (x2) 3306 | -4/Factory | Discovered exit to Research (range 22) 3332 | -4/Factory | Crushed by falling debris 3333 | -4/Factory | X0-1V1 added 0b10 threat records associated with you (minor) 3367 | -4/Factory | Search patrols dispatched 3369 | -4/Factory | System corruption reached 10% 3369 | -4/Factory | Sucked down chute 3369 | -4/Factory | Entered Waste 3372 | -4/Waste | Spotted C-40 Crusher 3373 | -4/Waste | Spotted C-40 Crusher 3373 | -4/Waste | Spotted C-40 Crusher 3384 | -4/Waste | EMP discharged 3389 | -4/Waste | Identified exit to Factory 3389 | -4/Waste | X0-1V1 revealed exit location to -4/Factory 3394 | -4/Waste | Spotted C-40 Crusher 3394 | -4/Waste | Spotted C-40 Crusher 3399 | -4/Waste | Entered Factory 3401 | -4/Factory | X0-1V1 redirected Transport squads to designated parking area 3502 | -4/Factory | Fabricated Weapon Mount (x2) 3639 | -4/Factory | X0-1V1 enhanced Transport squad support 3642 | -4/Factory | Build established: Hauler-Tank 3722 | -4/Factory | Found Prototype Hackware 3722 | -4/Factory | Identified Exp. Hacking Suite 3743 | -4/Factory | X0-1V1 revealed exit location to -3/Research 3766 | -4/Factory | X0-1V1 sent you into danger 3773 | -4/Factory | X0-1V1 added 0b10 threat records associated with you (major) 3799 | -4/Factory | Spotted B-86 Titan 3810 | -4/Factory | Fabricated Nova Cannon? 3821 | -4/Factory | Entered Research 3821 | -3/Research | Evolved 2 slots: Utility x2 3843 | -3/Research | Discovered new exit (range 10) 3897 | -3/Research | Identified exit to Research 3901 | -3/Research | X0-1V1 mutated your Weapon slot to Utility slot 4015 | -3/Research | Fabricated B-60 Warrior? 4071 | -3/Research | Search patrols dispatched 4127 | -3/Research | X0-1V1 activates XOMVISION 4239 | -3/Research | Discovered exit to Research (range 17) 4246 | -3/Research | Identified exit to Armory 4246 | -3/Research | Identified exit to Testing 4257 | -3/Research | X0-1V1 sent you to a vault 4264 | -3/Research | X0-1V1 activates XOMVISION 4283 | -3/Research | Spotted B-86 Titan 4290 | -3/Research | Allies destroyed B-86 Titan 4337 | -3/Research | Lost 3 allies 4386 | -3/Research | Entered Testing 4386 | -3/Testing | X0-1V1 redirected Transport squads to designated parking area 4400 | -3/Testing | Found Portable AFG 4402 | -3/Testing | X0-1V1 added 0b10 threat records associated with you (major) 4428 | -3/Testing | X0-1V1 activates XOMVISION 4505 | -3/Testing | Found Prototype Energy Cannon 4505 | -3/Testing | Identified Cld. Nova Cannon 4528 | -3/Testing | Build established: Hauler-Mutant 4528 | -3/Testing | X0-1V1 announced a LAN party 4551 | -3/Testing | Found Prototype Energy Cannon 4551 | -3/Testing | Identified Potential Cannon 4589 | -3/Testing | X0-1V1 vaporized surrounding terrain (radius 23) 4595 | -3/Testing | Rewired PD-38U08A28UB 4617 | -3/Testing | X0-1V1 sent you to a vault 4620 | -3/Testing | Garrison activated, responded to threat 4672 | -3/Testing | Found Prototype Ballistic Cannon 4672 | -3/Testing | Identified Omega Cannon 4731 | -3/Testing | Found Prototype Ballistic Gun 4734 | -3/Testing | X0-1V1 enhanced Transport squad support 4764 | -3/Testing | X0-1V1 activates XOMVISION 4793 | -3/Testing | X0-1V1 sent you into danger 4796 | -3/Testing | System corruption reached 10% 4808 | -3/Testing | Found Prototype Hackware 4813 | -3/Testing | Entered Research 4813 | -2/Research | Evolved 2 slots: Propulsion x1, Weapon x1 4836 | -2/Research | X0-1V1 sent hostile Butcher (x2) 4936 | -2/Research | Discovered new exit (range 15) 4941 | -2/Research | Discovered new exit (range 11) 4967 | -2/Research | Identified exit to Access 4972 | -2/Research | X0-1V1 added 0b10 threat records associated with you (considerable) 4990 | -2/Research | Identified exit to Quarantine 4991 | -2/Research | Entered Quarantine 4998 | -2/Quarantine | Found Alien Artifact 5007 | -2/Quarantine | Identified Exp. System Shield 5016 | -2/Quarantine | X0-1V1 sent you to a vault 5016 | -2/Quarantine | Found Prototype Slashing Weapon 5016 | -2/Quarantine | Identified Hvy. Scimitar of Distortion 5019 | -2/Quarantine | Found Hvy. Scimitar of Distortion 5021 | -2/Quarantine | Found Exp. EM Shield 5023 | -2/Quarantine | Found GOLEM Unit 5027 | -2/Quarantine | Identified Hyp. Multirail 5033 | -2/Quarantine | Found Prototype Reactor 5033 | -2/Quarantine | Identified Vortex Chain Reactor 5096 | -2/Quarantine | Found Alien Artifact 5104 | -2/Quarantine | Identified exit to Protoforge 5104 | -2/Quarantine | X0-1V1 revealed exit location to -2/Protoforge 5140 | -2/Quarantine | X0-1V1 sent you into danger 5157 | -2/Quarantine | X0-1V1 mutated your Utility slot to Power slot 5164 | -2/Quarantine | Found Alien Slashing Weapon 5172 | -2/Quarantine | Destroyed 10 combat bots 5185 | -2/Quarantine | Found Alien Artifact 5187 | -2/Quarantine | Found Alien Artifact 5187 | -2/Quarantine | Identified Dimensional Node Initializer 5187 | -2/Quarantine | Initialized slip node 5190 | -2/Quarantine | Found Dimensional Node Initializer 5194 | -2/Quarantine | X0-1V1 vaporized surrounding terrain (radius 15) 5277 | -2/Quarantine | Found Alien Artifact 5325 | -2/Quarantine | X0-1V1 vaporized surrounding terrain (radius 15) 5325 | -2/Quarantine | Discovered exit to Access (range 14) 5346 | -2/Quarantine | X0-1V1 activates XOMVISION 5350 | -2/Quarantine | Spotted Fortress 5353 | -2/Quarantine | X0-1V1 redirected Transport squads to designated parking area 5362 | -2/Quarantine | Discovered new exit (range 5) 5363 | -2/Quarantine | Entered Protoforge 5384 | -2/Protoforge | Build established: Hauler-Sprinter 5400 | -2/Protoforge | Spotted Hotshot 5400 | -2/Protoforge | Spotted Hotshot 5405 | -2/Protoforge | Central database locked down 5411 | -2/Protoforge | Spotted Hotshot 5451 | -2/Protoforge | Superfortress began startup sequence 5469 | -2/Protoforge | Discovered exit to Access (range 8) 5490 | -2/Protoforge | X0-1V1 activates XOMVISION 5538 | -2/Protoforge | X0-1V1 sent you to a vault 5582 | -2/Protoforge | Found Prototype Protection 5662 | -2/Protoforge | Spotted Hotshot 5701 | -2/Protoforge | System corruption reached 10% 5757 | -2/Protoforge | Lost 4 parts (1p1n2u) 5784 | -2/Protoforge | Initialized slip node 5806 | -2/Protoforge | Spotted Hotshot 5806 | -2/Protoforge | Spotted Hotshot 5817 | -2/Protoforge | Spotted Hotshot 5817 | -2/Protoforge | Spotted Hotshot 5843 | -2/Protoforge | X0-1V1 whisked you away to safety 5857 | -2/Protoforge | Spotted Hotshot 5859 | -2/Protoforge | X0-1V1 sent allied B-99 Colossus (x2) 5874 | -2/Protoforge | Spotted B-99 Colossus 5891 | -2/Protoforge | Identified Centrium Heavy Armor Plating 5988 | -2/Protoforge | Destroyed Hotshot 6003 | -2/Protoforge | Destroyed Hotshot 6023 | -2/Protoforge | Found Prototype Device 6029 | -2/Protoforge | Destroyed Hotshot 6113 | -2/Protoforge | First assault squad dispatched 6126 | -2/Protoforge | Forge Plexus network access discovered 6141 | -2/Protoforge | Found Femtoactuators 6142 | -2/Protoforge | Found Cep. Weapon Articulator 6146 | -2/Protoforge | Found Exp. Kinecellerator 6162 | -2/Protoforge | Spotted Decapitator 6162 | -2/Protoforge | Spotted Decapitator 6162 | -2/Protoforge | Spotted Decapitator 6162 | -2/Protoforge | Spotted Decapitator 6163 | -2/Protoforge | Destroyed Decapitator 6164 | -2/Protoforge | Spotted Immortal 6164 | -2/Protoforge | Spotted Immortal 6172 | -2/Protoforge | Destroyed Decapitator 6181 | -2/Protoforge | Build established: Hauler-Mutant 6181 | -2/Protoforge | Destroyed Decapitator 6217 | -2/Protoforge | Core integrity restored by X0-1V1 (+332) 6240 | -2/Protoforge | Found Faulty Cep. Zero-point Core 6255 | -2/Protoforge | Found Cep. Zero-point Core 6260 | -2/Protoforge | Spotted V540-s 6271 | -2/Protoforge | Destroyed V540-s 6283 | -2/Protoforge | Found Cep. Zero-point Core 6286 | -2/Protoforge | Found Faulty Cep. Zero-point Core 6351 | -2/Protoforge | Destroyed 7 combat bots 6371 | -2/Protoforge | Spotted Decapitator 6371 | -2/Protoforge | Spotted Decapitator 6371 | -2/Protoforge | Spotted V541-y 6371 | -2/Protoforge | Spotted Decapitator 6385 | -2/Protoforge | Destroyed Decapitator 6387 | -2/Protoforge | Destroyed Decapitator 6391 | -2/Protoforge | Destroyed Decapitator 6407 | -2/Protoforge | Found Cep. Phase Shift Module 6409 | -2/Protoforge | Found Exp. Force Field 6410 | -2/Protoforge | Found Faulty Cep. Beam Splitter 6412 | -2/Protoforge | Found Cep. Energy Mantle 6419 | -2/Protoforge | Found Cep. Reaction Jets 6422 | -2/Protoforge | Found Faulty Cep. Energy Mantle 6471 | -2/Protoforge | X0-1V1 sent allied Striker (x1) 6471 | -2/Protoforge | P-80 Master assimilated allied Striker 6471 | -2/Protoforge | Spotted Striker 6479 | -2/Protoforge | Destroyed Striker 6507 | -2/Protoforge | Destroyed 7 combat bots 6521 | -2/Protoforge | Identified Subatomic Replicator 6521 | -2/Protoforge | Used Subatomic Replicator to replicate Faulty Exp. Active Sensor Suite 6522 | -2/Protoforge | Found Faulty Exp. Active Sensor Suite 6524 | -2/Protoforge | Identified Crosscalibrator 6561 | -2/Protoforge | Spotted Immortal 6561 | -2/Protoforge | Spotted Immortal 6575 | -2/Protoforge | Spotted Decapitator 6620 | -2/Protoforge | Destroyed Immortal 6627 | -2/Protoforge | Destroyed Immortal 6632 | -2/Protoforge | Spotted V482-c 6637 | -2/Protoforge | Spotted V092-y 6681 | -2/Protoforge | Identified Core Reset Matrix 6681 | -2/Protoforge | Identified Phase Redirector 6681 | -2/Protoforge | Used Core Reset Matrix 6685 | -2/Protoforge | Sensed 2 artifacts in vicinity 6697 | -2/Protoforge | Lost 3 parts (1n1u1w) 6697 | -2/Protoforge | Scanned by Researcher 6753 | -2/Protoforge | Spotted V608-n 6886 | -2/Protoforge | X0-1V1 whisked you away to safety 6898 | -2/Protoforge | Lost 3 parts (1n1u1w) 6948 | -2/Protoforge | Spotted AP7-3 6948 | -2/Protoforge | Spotted AP7-3 6962 | -2/Protoforge | Found Cep. Zero-point Core 6981 | -2/Protoforge | X0-1V1 sent allied D-83 Annihilator (x4) 7041 | -2/Protoforge | Spotted Overlord 7058 | -2/Protoforge | Destroyed Overlord 7159 | -2/Protoforge | Build established: Hauler-Tank 7295 | -2/Protoforge | Spotted Hotshot 7295 | -2/Protoforge | Spotted Hotshot 7299 | -2/Protoforge | Discovered exit to Access (range 9) 7299 | -2/Protoforge | Spotted Hotshot 7299 | -2/Protoforge | Spotted Hotshot 7311 | -2/Protoforge | Entered Access 7311 | -1/Access | Evolved 2 slots: Utility x2 7318 | -1/Access | X0-1V1 sent hostile S-43 Plague (x4) 7398 | -1/Access | High security lockdown imminent 7478 | -1/Access | High security lockdown engaged 7550 | -1/Access | X0-1V1 destroyed Energy Cycler 7550 | -1/Access | Energy Cycler disabled 7579 | -1/Access | Weapon slot count temporarily expanded by X0-1V1 (+1) 7598 | -1/Access | Spotted Investigator 7606 | -1/Access | Destroyed Investigator 7625 | -1/Access | X0-1V1 sent allied Quarantine Guard (x2) 7660 | -1/Access | Spotted Striker 7665 | -1/Access | Spotted B-99 Colossus 7667 | -1/Access | Spotted B-99 Colossus 7673 | -1/Access | Spotted Striker 7674 | -1/Access | Spotted Striker 7675 | -1/Access | X0-1V1 downgraded hostiles (x2) 7675 | -1/Access | Spotted B-90 Cyclops 7675 | -1/Access | Spotted B-90 Cyclops 7699 | -1/Access | X0-1V1 sent allied Cetus Guard (x2) 7714 | -1/Access | Allies destroyed Striker 7717 | -1/Access | Allies destroyed Striker 7747 | -1/Access | Lost 5 parts (2u3w) 7772 | -1/Access | Spotted Executioner 7776 | -1/Access | Discovered new exit (range 8) 7785 | -1/Access | Identified exit to Surface 7786 | *** | Heading to fleet! Last Messages --------------- 07772_ P-80 Master unfolds itself. 07772_ E-15 Imp unfolds itself. 07772_ M-36 Artificer repairs B-90 Cyclops Unknown Protection. 07774_ B-90 Cyclops exits siege mode. 07776_ M-36 Artificer repairs B-90 Cyclops. 07776_ Main Access Shell breached. 07776_ EXIT=FOUND 07778_ Exp. Kinecellerator blown off. 07778_ M-36 Artificer repairs B-90 Cyclops. 07780_ M-36 Artificer repairs B-90 Cyclops Unknown Protection. 07781_ B-90 Cyclops activates siege mode. 07782_ P-80 Master resets B-90 Cyclops, system corruption cleaned. 07782_ Slug penetrates B-90 Cyclops. 07783_ P-80 Master resets E-15 Imp, system corruption cleaned. 07785_ EXIT=IDENTIFIED: SURFACE [Achievement: Chaotic Teddy Bear] Map ----- +----------------------------------------------------+ | ????????????# #??? ? ??????????????? | | ????????????# #??? ? ""?????????????? | | #"###+#############+###"#### ? "?????????????? | | # ""????????????? | | % =%== % % "? ?????????????? | | /![[!*% !" # ??????????????? | | %!%[%= %% t %%" + ????????????????? | | ####=/##=###########="" " ?????????????????? | | ! ] #?????# " # ???????????????????? | | *== #?????##""%" % "###??????????????????? | | " #??????# % #??????????????????? | | """ #??????# B gg #??????????????????? | | "%G #??????# BB l #??????????????????? | | """ #??????#iY* BBE #??????????????????? | | " #??????# %% #??????????????????? | | ] #??????# [m* #??????????????????? | | #??????# p%p[ #??????????????????? | | #??????# g%%" " #??????????????????? | | #??????#"" ! "" ""#??????????????????? | | #????????"" g"?""????????????????????? | | #+###########??????#""" """""#??????????????????? | | # #???????????###??# #??????????????????? | | # #???###?????#"#??# "" """ #??????????????????? | | # #####"#######Y#??# " e "??#??????????????????? | | # ##" """""" #??# ?" "" "?????????????????????? | | # ### ""S"" #??#??" "@ "?????????????????????? | | # ### """ #?????" "?????????????????????? | | #+##" #?????"" """?????????????????????? | | #=== #?????? ???????????????????????? | | #=== #????? ???????????????????????? | | #=== #??"" """""??????????????????? | | # #??#"" #??????????????????? | | # ! #??#"" #??????????????????? | | # #??#"" #??????????????????? | | # #??#T #???????#######????? | | # #??#"" #?????### ###??? | | # #??#"" #?????# """""" #??? | | +######+############"" #######"" " ##?? | | " #?? | | ! " #?? | | ##############+#####################""" " #?? | | ???????????? ??????????????????# "" """""### | | ?????????? #?????????????????# "% " | | ???????? #?????????????????## " " | | ???????# #??????????????????# " " | | ???????# " #??????????????????###" " | | ???????# """ #????????????????????## # | | ???????# """ #?????????????????????# # | | ???????# " #?????????????????????# # | | ???????#####?#####???????????########### # | +----------------------------------------------------+ Best States ------------- Heat Dissipation 80 Coolant Potential 100 Energy Generation 93 Energy Capacity 2850 Matter Stores 1000 Matter Capacity 1000 Sight Range 26 Robot Scan Range 20 Terrain Scan Density 10 ECM Strength 2 Armor Coverage 600 Resistance: KI 30 Resistance: EM 75 Propulsion Shielding 90 Utility Shielding 66 Weapon Shielding 90 Weapon Cycling 20 Melee Speed Boost 50 Phase Shifting 25 Evasion (%) 98 Targeting Accuracy 20 Target Analysis 8 Core Analysis 6 Recoil Reduction 3 Kinecelleration 66 Offensive Hacking 30 Authchip Count 1 Item Schematics ----------------- Adv. KE Penetrator | -2/Protoforge | Archive Exp. Power Amplifier | -2/Protoforge | Archive Robot Schematics ------------------ None Fabricated ------------ Weapon Mount | x2 | -4/Factory | Authchip Nova Cannon | x2 | -4/Factory | Preloaded B-60 Warrior | x3 | -3/Research | Preloaded Repaired ---------- Nothing Studied --------- None Alien Tech Used ----------------- Dimensional Node Initializer Subatomic Replicator Core Reset Matrix Phase Redirector Achievements -------------- Chaos Is Inevitable Chaotic Teddy Bear I Know It's In Here Somewhere Packrat Challenges ------------ None Game ------ Seed BehemothScimitarArticulator Manual? 0 Play Time 04:10:52 Cumulative 450.5 hours Start 2026.06.22 @ 21:42:33 End 2026.06.23 @ 12:09:34 Sessions 8 Manual Loads 0 Difficulty Rogue Special Mode None Game No. 207 Rogue 207 Adventurer 0 Explorer 0 Win Type 2 Total 24 Types 11/1/4/2/1/1/1/1/1/1 Lore% 86 Gallery% 78 Achievement% 71 Wizard Run 0 Options --------- Layout 2 ASCII 0 Keyboard 1 Movement Arrows Keybinds 0 Fullscreen 2 Font 24/Terminus Map View 50x44 Zoom Use 0% Tactical HUD 1 Map Filters NONE Filters NONE Steam 1 RUN: fc8be6fd-db00-4835-ae46-d9b93964c993